fUST/lending_fUST_20250806
["ID","MTS","AMOUNT","RATE_DAILY","PERIOD"]
[377467812,1754418524147,453.55838276,0.00021,2]
[377467815,1754418524931,7539.38474727,0.00019,2]
[377467827,1754418527204,161.63,0.00024,14]
[377467894,1754418632235,-300.0,0.00024649,2]
[377467896,1754418632244,-300.0,0.00024649,2]
[377467897,1754418632253,-300.0,0.00024649,2]
[377467899,1754418632263,-1200.0,0.00024649,2]
[377467901,1754418632272,-300.0,0.00024649,2]
[377467903,1754418632281,-2607.74794015,0.0002465,2]
[377467904,1754418632292,-2931.5996216,0.0002465,2]
[377467991,1754418638078,-12506.4314989,0.0002465,2]
[377467992,1754418638090,-5791.08486029,0.0002465,2]
[377467993,1754418638101,-9195.34247,0.0002465,2]
[377467994,1754418638111,-432.26826119,0.00024973,2]
[377467996,1754418638121,-500.0,0.00024973,2]
[377467998,1754418638130,-484.9921155,0.00024999,2]
[377468000,1754418638140,-500.0,0.00024999,2]
[377468001,1754418638149,-2385.57241334,0.00025,2]
[377468004,1754418638161,-4279.7629082,0.00025,2]
[377468006,1754418638173,-288.92218227,0.00025,2]
[377468008,1754418638184,-555.86808381,0.00025,2]
[377468010,1754418638195,-325.26,0.00025,2]
[377468012,1754418638207,-7604.45069536,0.00025,2]
[377468014,1754418638225,-5605.38598848,0.00025,2]
[377468016,1754418638237,-465122.34772625,0.00025,2]
[377468017,1754418638246,-478.3353844,0.00025172,2]
[377468019,1754418638254,-500.0,0.00025789,2]
[377468021,1754418638263,-50000.0,0.00025789,2]
[377468023,1754418638273,-19223.88785355,0.0002579,3]
[377468024,1754418638283,-58953.6578319,0.00025864,2]
[377468025,1754418638292,-592.24,0.0002587,3]
[377468027,1754418638302,-160.0,0.00025872,2]
[377468029,1754418638312,-500.0,0.00025873,2]
[377468030,1754418638321,-496.96624595,0.00025873,2]
[377468031,1754418638331,-294768.289159,0.0002588,2]
[377468032,1754418638340,-160.0,0.00025885,2]
[377468033,1754418638357,-83675.5908164,0.0002589,2]
[377468034,1754418638370,-286324.4091836,0.0002589,2]
[377468035,1754418638380,-196.196,0.00026006,12]
[377468036,1754418638389,-231.72586818,0.00026026,3]
[377468037,1754418638398,-500.0,0.00026063,2]
[377468038,1754418638408,-191.02428791,0.0002616,2]
[377468039,1754418638417,-500.0,0.00026337,2]
[377468040,1754418638426,-233.47111349,0.00026421,2]
[377468041,1754418638436,-500.0,0.00026611,2]
[377468042,1754418638445,-346.182649,0.00026676,2]
[377468043,1754418638455,-420.0,0.00026713,2]
[377468044,1754418638464,-151.0,0.00026742,2]
[377468045,1754418638474,-151.0,0.00026742,2]
[377468046,1754418638483,-151.0,0.00026742,2]
[377468047,1754418638493,-151.0,0.00026742,2]
[377468048,1754418638502,-151.0,0.00026742,2]
[377468049,1754418638511,-151.0,0.00026742,2]
[377468050,1754418638521,-151.0,0.00026742,2]
[377468051,1754418638530,-151.0,0.00026742,2]
[377468052,1754418638539,-151.0,0.00026742,2]
[377468053,1754418638548,-151.0,0.00026742,2]
[377468054,1754418638557,-151.0,0.00026742,2]
[377468055,1754418638567,-151.0,0.00026742,2]
[377468056,1754418638576,-151.0,0.00026742,2]
[377468057,1754418638585,-151.0,0.00026742,2]
[377468058,1754418638596,-151.0,0.00026742,2]
[377468059,1754418638616,-151.0,0.00026742,2]
[377468060,1754418638625,-151.0,0.00026742,2]
[377468061,1754418638634,-151.0,0.00026742,2]
[377468062,1754418638643,-151.0,0.00026742,2]
[377468063,1754418638653,-151.0,0.00026742,2]
[377468064,1754418638662,-3764.73139036,0.000268,3]
[377468065,1754418638671,-431897.31054501,0.00026847,2]
[377468066,1754418638680,-5000.0,0.00026926,2]
[377468067,1754418638690,-5794.5573048,0.00027,2]
[377468068,1754418638700,-500.0,0.00027373,2]
[377468069,1754418638709,-156.681698,0.00027386,2]
[377468070,1754418638719,-460.0,0.00027397,2]
[377468071,1754418638728,-460.0,0.00027397,2]
[377468072,1754418638738,-460.0,0.00027397,2]
[377468073,1754418638747,-460.0,0.00027397,2]
[377468074,1754418638756,-500.0,0.00027397,2]
[377468075,1754418638766,-460.0,0.00027397,2]
[377468076,1754418638775,-460.0,0.00027397,2]
[377468077,1754418638784,-460.0,0.00027397,2]
[377468078,1754418638793,-460.0,0.00027397,2]
[377468079,1754418638803,-460.0,0.00027397,2]
[377468080,1754418638813,-460.0,0.00027397,2]
[377468081,1754418638822,-460.0,0.00027397,2]
[377468082,1754418638831,-460.0,0.00027397,2]
[377468083,1754418638840,-460.0,0.00027397,2]
[377468084,1754418638849,-460.0,0.00027397,2]
[377468085,1754418638859,-460.0,0.00027397,2]
[377468086,1754418638868,-460.0,0.00027397,2]
[377468087,1754418638878,-460.0,0.00027397,2]
[377468088,1754418638887,-564.39,0.00027397,2]
[377468089,1754418638896,-460.0,0.00027397,2]
[377468090,1754418638906,-460.0,0.00027397,2]
[377468091,1754418638915,-460.0,0.00027397,2]
[377468092,1754418638925,-460.0,0.00027397,2]
[377468093,1754418638934,-460.0,0.00027397,2]
[377468094,1754418638944,-460.0,0.00027397,2]
[377468095,1754418638953,-460.0,0.00027397,2]
[377468096,1754418638962,-460.0,0.00027397,2]
[377468097,1754418638971,-460.0,0.00027397,2]
[377468098,1754418638980,-460.0,0.00027397,2]
[377468099,1754418638990,-460.0,0.00027397,2]
[377468100,1754418639003,-500.0,0.00027397,2]
[377468101,1754418639012,-460.0,0.00027397,2]
[377468102,1754418639022,-460.0,0.00027397,2]
[377468103,1754418639032,-460.0,0.00027397,2]
[377468104,1754418639041,-460.0,0.00027397,2]
[377468105,1754418639052,-460.0,0.00027397,2]
[377468106,1754418639061,-895.54,0.00027397,2]
[377468107,1754418639072,-460.0,0.00027397,2]
[377468108,1754418639082,-460.0,0.00027397,2]
[377468109,1754418639091,-460.0,0.00027397,2]
[377468110,1754418639100,-460.0,0.00027397,2]
[377468111,1754418639109,-508.73,0.00027397,2]
[377468112,1754418639118,-460.0,0.00027397,2]
[377468113,1754418639128,-460.0,0.00027397,2]
[377468114,1754418639138,-460.0,0.00027397,2]
[377468115,1754418639147,-460.0,0.00027397,2]
[377468116,1754418639156,-558.16,0.00027397,2]
[377468117,1754418639166,-460.0,0.00027397,2]
[377468118,1754418639176,-460.0,0.00027397,2]
[377468119,1754418639185,-460.0,0.00027397,2]
[377468120,1754418639195,-177.92063835,0.00027397,2]
[377468121,1754418639204,-460.0,0.00027397,2]
[377468122,1754418639214,-460.0,0.00027397,2]
[377468123,1754418639223,-460.0,0.00027397,2]
[377468124,1754418639232,-460.0,0.00027397,2]
[377468125,1754418639241,-460.0,0.00027397,2]
[377468126,1754418639251,-460.0,0.00027397,2]
[377468127,1754418639261,-460.0,0.00027397,2]
[377468128,1754418639270,-460.0,0.00027397,2]
[377468129,1754418639279,-460.0,0.00027397,2]
[377468130,1754418639289,-460.0,0.00027397,2]
[377468131,1754418639299,-460.0,0.00027397,2]
[377468132,1754418639309,-460.0,0.00027397,2]
[377468133,1754418639319,-460.0,0.00027397,2]
[377468134,1754418639328,-460.81767758,0.00027397,2]
[377468135,1754418639337,-460.0,0.00027397,2]
[377468136,1754418639346,-460.0,0.00027397,2]
[377468137,1754418639355,-460.0,0.00027397,2]
[377468138,1754418639367,-460.0,0.00027397,2]
[377468139,1754418639376,-460.0,0.00027397,2]
[377468140,1754418639386,-460.0,0.00027397,2]
[377468141,1754418639395,-10473.5,0.00027397,2]
[377468142,1754418639403,-460.0,0.00027397,2]
[377468143,1754418639413,-460.0,0.00027397,2]
[377468144,1754418639422,-460.0,0.00027397,2]
[377468145,1754418639431,-460.0,0.00027397,2]
[377468146,1754418639440,-460.0,0.00027397,2]
[377468147,1754418639450,-704.95,0.00027397,2]
[377468148,1754418639459,-485.85,0.00027397,2]
[377468149,1754418639468,-840.2,0.00027397,2]
[377468150,1754418639477,-460.0,0.00027397,2]
[377468151,1754418639487,-460.0,0.00027397,2]
[377468152,1754418639497,-460.0,0.00027397,2]
[377468153,1754418639506,-460.0,0.00027397,2]
[377468154,1754418639516,-460.0,0.00027397,2]
[377468155,1754418639525,-658.04,0.00027397,2]
[377468156,1754418639533,-460.0,0.00027397,2]
[377468157,1754418639543,-155.46,0.00027397,2]
[377468158,1754418639554,-828.25,0.00027397,2]
[377468159,1754418639563,-460.0,0.00027397,2]
[377468160,1754418639572,-460.0,0.00027397,2]
[377468161,1754418639582,-460.0,0.00027397,2]
[377468162,1754418639592,-460.0,0.00027397,2]
[377468163,1754418639601,-45118.93027208,0.000275,2]
[377468164,1754418639610,-150.0,0.0002767,3]
[377468165,1754418639619,-460.0,0.00027671,2]
[377468166,1754418639629,-460.0,0.00027671,2]
[377468167,1754418639638,-500.0,0.00027671,2]
[377468168,1754418639647,-460.0,0.00027671,2]
[377468169,1754418639657,-460.0,0.00027671,2]
[377468170,1754418639666,-460.0,0.00027671,2]
[377468171,1754418639675,-460.0,0.00027671,2]
[377468172,1754418639685,-460.0,0.00027671,2]
[377468173,1754418639694,-460.0,0.00027671,2]
[377468174,1754418639703,-460.0,0.00027671,2]
[377468175,1754418639712,-460.0,0.00027671,2]
[377468176,1754418639722,-460.0,0.00027671,2]
[377468177,1754418639731,-460.0,0.00027671,2]
[377468179,1754418639740,-249.23879329,0.00027671,2]
[377468181,1754418639749,-460.0,0.00027671,2]
[377468182,1754418639759,-600.40321773,0.00027671,2]
[377468183,1754418639769,-564.39,0.00027671,2]
[377468184,1754418639778,-460.0,0.00027671,2]
[377468185,1754418639788,-460.0,0.00027671,2]
[377468186,1754418639798,-460.0,0.00027671,2]
[377468187,1754418639808,-605.32,0.00027671,2]
[377468188,1754418639817,-460.0,0.00027671,2]
[377468189,1754418639826,-460.0,0.00027671,2]
[377468190,1754418639836,-460.0,0.00027671,2]
[377468191,1754418639845,-529.22,0.00027671,2]
[377468192,1754418639855,-460.0,0.00027671,2]
[377468193,1754418639864,-368.10507367,0.00027671,2]
[377468194,1754418639873,-460.0,0.00027671,2]
[377468195,1754418639883,-460.0,0.00027671,2]
[377468196,1754418639893,-460.0,0.00027671,2]
[377468197,1754418639902,-460.0,0.00027671,2]
[377468198,1754418639911,-460.0,0.00027671,2]
[377468199,1754418639921,-895.54,0.00027671,2]
[377468200,1754418639931,-460.0,0.00027671,2]
[377468201,1754418639940,-460.0,0.00027671,2]
[377468202,1754418639949,-460.0,0.00027671,2]
[377468203,1754418639958,-460.0,0.00027671,2]
[377468204,1754418639968,-508.73,0.00027671,2]
[377468205,1754418639977,-460.0,0.00027671,2]
[377468206,1754418639986,-460.0,0.00027671,2]
[377468207,1754418639997,-579.4,0.00027671,2]
[377468208,1754418640009,-460.0,0.00027671,2]
[377468209,1754418640018,-288.97,0.00027671,2]
[377468210,1754418640027,-460.0,0.00027671,2]
[377468211,1754418640038,-577.08,0.00027671,2]
[377468212,1754418640047,-460.0,0.00027671,2]
[377468213,1754418640058,-460.0,0.00027671,2]
[377468214,1754418640067,-460.0,0.00027671,2]
[377468215,1754418640077,-460.0,0.00027671,2]
[377468216,1754418640087,-460.0,0.00027671,2]
[377468217,1754418640097,-460.0,0.00027671,2]
[377468218,1754418640106,-460.0,0.00027671,2]
[377468219,1754418640115,-460.0,0.00027671,2]
[377468220,1754418640124,-460.0,0.00027671,2]
[377468221,1754418640133,-421.55,0.00027671,2]
[377468222,1754418640143,-460.0,0.00027671,2]
[377468223,1754418640152,-460.0,0.00027671,2]
[377468224,1754418640161,-460.0,0.00027671,2]
[377468225,1754418640170,-460.0,0.00027671,2]
[377468227,1754418640179,-460.0,0.00027671,2]
[377468228,1754418640188,-327.72928375,0.00027671,2]
[377468229,1754418640197,-518.66,0.00027671,2]
[377468230,1754418640207,-460.0,0.00027671,2]
[377468232,1754418640216,-10473.5,0.00027671,2]
[377468233,1754418640226,-460.0,0.00027671,2]
[377468234,1754418640235,-460.0,0.00027671,2]
[377468235,1754418640245,-460.0,0.00027671,2]
[377468236,1754418640254,-460.0,0.00027671,2]
[377468237,1754418640262,-460.0,0.00027671,2]
[377468238,1754418640271,-704.95,0.00027671,2]
[377468239,1754418640280,-485.85,0.00027671,2]
[377468240,1754418640289,-840.2,0.00027671,2]
[377468241,1754418640298,-460.0,0.00027671,2]
[377468242,1754418640308,-460.0,0.00027671,2]
[377468243,1754418640318,-460.0,0.00027671,2]
[377468244,1754418640327,-460.0,0.00027671,2]
[377468245,1754418640335,-460.0,0.00027671,2]
[377468246,1754418640345,-658.04,0.00027671,2]
[377468247,1754418640354,-460.0,0.00027671,2]
[377468248,1754418640364,-828.25,0.00027671,2]
[377468249,1754418640374,-460.0,0.00027671,2]
[377468250,1754418640383,-460.0,0.00027671,2]
[377468251,1754418640392,-460.0,0.00027671,2]
[377468252,1754418640402,-460.0,0.00027671,2]
[377468253,1754418640411,-156.681698,0.00027881,2]
[377468254,1754418640420,-156.531809,0.00027881,2]
[377468255,1754418640430,-160.0,0.00027891,2]
[377468256,1754418640439,-460.0,0.00027945,2]
[377468257,1754418640448,-462.45603283,0.00027945,2]
[377468258,1754418640458,-500.0,0.00027945,2]
[377468259,1754418640467,-453.48631578,0.00027945,2]
[377468260,1754418640476,-166.9,0.00027945,2]
[377468261,1754418640485,-460.0,0.00027945,2]
[377468262,1754418640494,-219.74,0.00027945,2]
[377468263,1754418640503,-460.0,0.00027945,2]
[377468264,1754418640513,-460.0,0.00027945,2]
[377468265,1754418640522,-460.0,0.00027945,2]
[377468266,1754418640531,-460.0,0.00027945,2]
[377468267,1754418640540,-460.0,0.00027945,2]
[377468268,1754418640659,-460.0,0.00027945,2]
[377468269,1754418640670,-564.39,0.00027945,2]
[377468270,1754418640680,-297.89146792,0.00027945,2]
[377468271,1754418640689,-460.0,0.00027945,2]
[377468272,1754418640698,-460.0,0.00027945,2]
[377468273,1754418640707,-460.0,0.00027945,2]
[377468274,1754418640716,-462.97,0.00027945,2]
[377468275,1754418640726,-460.0,0.00027945,2]
[377468276,1754418640735,-422.06,0.00027945,2]
[377468277,1754418640744,-460.0,0.00027945,2]
[377468278,1754418640754,-460.0,0.00027945,2]
[377468279,1754418640764,-240.50173134,0.00027945,2]
[377468280,1754418640774,-460.0,0.00027945,2]
[377468281,1754418640783,-460.0,0.00027945,2]
[377468282,1754418640792,-895.54,0.00027945,2]
[377468283,1754418640802,-460.0,0.00027945,2]
[377468284,1754418640811,-460.0,0.00027945,2]
[377468285,1754418640820,-460.0,0.00027945,2]
[377468286,1754418640830,-460.0,0.00027945,2]
[377468287,1754418640839,-508.73,0.00027945,2]
[377468288,1754418640848,-460.0,0.00027945,2]
[377468289,1754418640857,-460.0,0.00027945,2]
[377468290,1754418640866,-460.0,0.00027945,2]
[377468291,1754418640876,-460.0,0.00027945,2]
[377468292,1754418640885,-460.0,0.00027945,2]
[377468293,1754418640896,-460.0,0.00027945,2]
[377468294,1754418640905,-500.34,0.00027945,2]
[377468295,1754418640915,-460.0,0.00027945,2]
[377468296,1754418640925,-508.54217736,0.00027945,2]
[377468297,1754418640937,-428.74,0.00027945,2]
[377468298,1754418640946,-544.42,0.00027945,2]
[377468299,1754418640955,-460.0,0.00027945,2]
[377468300,1754418640965,-460.0,0.00027945,2]
[377468301,1754418640974,-460.0,0.00027945,2]
[377468302,1754418640983,-460.0,0.00027945,2]
[377468303,1754418640993,-218.15,0.00027945,2]
[377468304,1754418641006,-460.0,0.00027945,2]
[377468305,1754418641015,-549.02,0.00027945,2]
[377468306,1754418641024,-460.0,0.00027945,2]
[377468307,1754418641033,-10473.5,0.00027945,2]
[377468308,1754418641044,-460.0,0.00027945,2]
[377468309,1754418641056,-460.0,0.00027945,2]
[377468310,1754418641065,-460.0,0.00027945,2]
[377468311,1754418641074,-460.0,0.00027945,2]
[377468312,1754418641086,-460.0,0.00027945,2]
[377468313,1754418641095,-704.95,0.00027945,2]
[377468314,1754418641105,-485.85,0.00027945,2]
[377468315,1754418641114,-840.2,0.00027945,2]
[377468316,1754418641124,-460.0,0.00027945,2]
[377468317,1754418641133,-460.0,0.00027945,2]
[377468318,1754418641142,-460.0,0.00027945,2]
[377468319,1754418641151,-460.0,0.00027945,2]
[377468320,1754418641161,-460.0,0.00027945,2]
[377468321,1754418641171,-658.04,0.00027945,2]
[377468322,1754418641180,-460.0,0.00027945,2]
[377468323,1754418641190,-828.25,0.00027945,2]
[377468324,1754418641199,-460.0,0.00027945,2]
[377468325,1754418641208,-516.52770387,0.00027945,2]
[377468326,1754418641217,-460.0,0.00027945,2]
[377468327,1754418641226,-460.0,0.00027945,2]
[377468328,1754418641236,-231.72586818,0.00028,3]
[377468329,1754418641245,-312.16666667,0.00028,3]
[377468330,1754418641254,-312.16666667,0.00028,3]
[377468331,1754418641263,-312.16666667,0.00028,7]
[377468332,1754418641272,-312.16666667,0.00028,3]
[377468333,1754418641282,-312.16666667,0.00028,7]
[377468334,1754418641291,-842.25606042,0.00028,3]
[377468335,1754418641302,-842.25606042,0.00028,7]
[377468336,1754418641311,-842.25606042,0.00028,3]
[377468337,1754418641320,-842.25606042,0.00028,7]
[377468338,1754418641330,-2000.0,0.00028218,2]
[377468339,1754418641339,-460.0,0.00028219,2]
[377468340,1754418641348,-500.0,0.00028219,2]
[377468341,1754418641357,-460.0,0.00028219,2]
[377468342,1754418641369,-460.0,0.00028219,2]
[377468343,1754418641378,-460.0,0.00028219,2]
[377468344,1754418641387,-460.0,0.00028219,2]
[377468345,1754418641397,-460.02,0.00028219,2]
[377468346,1754418641406,-460.0,0.00028219,2]
[377468347,1754418641415,-564.39,0.00028219,2]
[377468348,1754418641425,-460.0,0.00028219,2]
[377468349,1754418641434,-460.0,0.00028219,2]
[377468350,1754418641443,-460.0,0.00028219,2]
[377468351,1754418641452,-460.0,0.00028219,2]
[377468352,1754418641461,-460.0,0.00028219,2]
[377468353,1754418641471,-460.0,0.00028219,2]
[377468354,1754418641480,-460.0,0.00028219,2]
[377468355,1754418641489,-460.0,0.00028219,2]
[377468356,1754418641498,-895.54,0.00028219,2]
[377468357,1754418641508,-460.0,0.00028219,2]
[377468358,1754418641517,-460.0,0.00028219,2]
[377468359,1754418641526,-460.0,0.00028219,2]
[377468360,1754418641535,-460.0,0.00028219,2]
[377468361,1754418641544,-508.73,0.00028219,2]
[377468362,1754418641555,-460.0,0.00028219,2]
[377468363,1754418641564,-308.28,0.00028219,2]
[377468364,1754418641573,-460.0,0.00028219,2]
[377468365,1754418641583,-460.0,0.00028219,2]
[377468366,1754418641592,-460.0,0.00028219,2]
[377468367,1754418641601,-460.0,0.00028219,2]
[377468368,1754418641610,-425.82,0.00028219,2]
[377468369,1754418641619,-460.0,0.00028219,2]
[377468370,1754418641628,-460.0,0.00028219,2]
[377468371,1754418641637,-460.0,0.00028219,2]
[377468372,1754418641647,-460.0,0.00028219,2]
[377468373,1754418641657,-460.0,0.00028219,2]
[377468374,1754418641666,-460.0,0.00028219,2]
[377468375,1754418641675,-10473.5,0.00028219,2]
[377468376,1754418641684,-460.0,0.00028219,2]
[377468377,1754418641693,-460.0,0.00028219,2]
[377468378,1754418641703,-460.0,0.00028219,2]
[377468379,1754418641712,-460.0,0.00028219,2]
[377468380,1754418641721,-460.0,0.00028219,2]
[377468381,1754418641730,-704.95,0.00028219,2]
[377468382,1754418641739,-485.85,0.00028219,2]
[377468383,1754418641749,-840.2,0.00028219,2]
[377468384,1754418641758,-460.0,0.00028219,2]
[377468385,1754418641768,-460.0,0.00028219,2]
[377468386,1754418641777,-460.0,0.00028219,2]
[377468387,1754418641786,-460.0,0.00028219,2]
[377468388,1754418641796,-460.0,0.00028219,2]
[377468389,1754418641809,-658.04,0.00028219,2]
[377468390,1754418641818,-460.0,0.00028219,2]
[377468391,1754418641828,-828.25,0.00028219,2]
[377468392,1754418641837,-460.0,0.00028219,2]
[377468393,1754418641846,-460.0,0.00028219,2]
[377468394,1754418641855,-460.0,0.00028219,2]
[377468395,1754418641864,-260.0,0.00028439,2]
[377468396,1754418641875,-200.0,0.00028459,15]
[377468397,1754418641884,-300.0,0.00028459,15]
[377468398,1754418641893,-460.0,0.00028493,2]
[377468399,1754418641902,-269.04,0.00028493,2]
[377468400,1754418641911,-460.0,0.00028493,2]
[377468401,1754418641921,-460.0,0.00028493,2]
[377468402,1754418641930,-460.0,0.00028493,2]
[377468403,1754418641939,-381.14,0.00028493,2]
[377468404,1754418641948,-460.0,0.00028493,2]
[377468405,1754418641958,-564.39,0.00028493,2]
[377468406,1754418641967,-460.0,0.00028493,2]
[377468407,1754418641976,-460.0,0.00028493,2]
[377468408,1754418641985,-367.24,0.00028493,2]
[377468409,1754418641995,-460.0,0.00028493,2]
[377468410,1754418642007,-460.0,0.00028493,2]
[377468411,1754418642016,-460.0,0.00028493,2]
[377468412,1754418642026,-460.0,0.00028493,2]
[377468413,1754418642034,-460.0,0.00028493,2]
[377468414,1754418642045,-895.54,0.00028493,2]
[377468415,1754418642058,-460.0,0.00028493,2]
[377468416,1754418642067,-333.38,0.00028493,2]
[377468417,1754418642079,-460.0,0.00028493,2]
[377468418,1754418642091,-415.8,0.00028493,2]
[377468419,1754418642103,-508.73,0.00028493,2]
[377468420,1754418642115,-460.0,0.00028493,2]
[377468421,1754418642128,-460.0,0.00028493,2]
[377468422,1754418642140,-460.0,0.00028493,2]
[377468423,1754418642152,-460.0,0.00028493,2]
[377468424,1754418642163,-460.0,0.00028493,2]
[377468425,1754418642173,-160.68,0.00028493,2]
[377468426,1754418642183,-390.2,0.00028493,2]
[377468427,1754418642193,-460.0,0.00028493,2]
[377468428,1754418642205,-460.0,0.00028493,2]
[377468429,1754418642215,-460.0,0.00028493,2]
[377468430,1754418642226,-460.0,0.00028493,2]
[377468431,1754418642237,-10473.5,0.00028493,2]
[377468432,1754418642249,-460.0,0.00028493,2]
[377468433,1754418642260,-460.0,0.00028493,2]
[377468434,1754418642272,-460.0,0.00028493,2]
[377468435,1754418642283,-460.0,0.00028493,2]
[377468436,1754418642294,-460.0,0.00028493,2]
[377468437,1754418642308,-704.95,0.00028493,2]
[377468438,1754418642320,-485.85,0.00028493,2]
[377468439,1754418642332,-840.2,0.00028493,2]
[377468440,1754418642344,-460.0,0.00028493,2]
[377468441,1754418642355,-568.27527087,0.00028493,2]
[377468442,1754418642366,-460.0,0.00028493,2]
[377468443,1754418642377,-401.4,0.00028493,2]
[377468444,1754418642388,-460.0,0.00028493,2]
[377468445,1754418642399,-658.04,0.00028493,2]
[377468446,1754418642410,-460.0,0.00028493,2]
[377468447,1754418642420,-828.25,0.00028493,2]
[377468448,1754418642430,-460.0,0.00028493,2]
[377468449,1754418642441,-460.0,0.00028493,2]
[377468450,1754418642452,-460.0,0.00028493,2]
[377468451,1754418642464,-151.92,0.00028687,15]
[377468452,1754418642475,-158.23,0.00028767,2]
[377468453,1754418642487,-460.0,0.00028767,2]
[377468454,1754418642498,-460.0,0.00028767,2]
[377468455,1754418642508,-460.0,0.00028767,2]
[377468456,1754418642518,-564.39,0.00028767,2]
[377468457,1754418642528,-460.0,0.00028767,2]
[377468458,1754418642538,-456.66,0.00028767,2]
[377468459,1754418642549,-460.0,0.00028767,2]
[377468460,1754418642560,-460.0,0.00028767,2]
[377468461,1754418642571,-460.0,0.00028767,2]
[377468462,1754418642582,-460.0,0.00028767,2]
[377468463,1754418642593,-895.54,0.00028767,2]
[377468465,1754418642605,-460.0,0.00028767,2]
[377468467,1754418642616,-460.0,0.00028767,2]
[377468470,1754418642627,-508.73,0.00028767,2]
[377468471,1754418642639,-460.0,0.00028767,2]
[377468472,1754418642650,-460.0,0.00028767,2]
[377468473,1754418642662,-460.0,0.00028767,2]
[377468474,1754418642674,-460.0,0.00028767,2]
[377468475,1754418642685,-460.0,0.00028767,2]
[377468476,1754418642698,-460.0,0.00028767,2]
[377468477,1754418642709,-201.18,0.00028767,2]
[377468479,1754418642721,-184.58,0.00028767,2]
[377468481,1754418642732,-460.0,0.00028767,2]
[377468483,1754418642741,-10473.5,0.00028767,2]
[377468484,1754418642751,-460.0,0.00028767,2]
[377468485,1754418642761,-234.25,0.00028767,2]
[377468486,1754418642770,-460.0,0.00028767,2]
[377468487,1754418642780,-460.0,0.00028767,2]
[377468489,1754418642790,-460.0,0.00028767,2]
[377468490,1754418642801,-704.95,0.00028767,2]
[377468491,1754418642813,-485.85,0.00028767,2]
[377468492,1754418642826,-840.2,0.00028767,2]
[377468493,1754418642837,-173.59,0.00028767,2]
[377468494,1754418642849,-460.0,0.00028767,2]
[377468495,1754418642859,-460.0,0.00028767,2]
[377468496,1754418642869,-658.04,0.00028767,2]
[377468497,1754418642878,-460.0,0.00028767,2]
[377468498,1754418642888,-828.25,0.00028767,2]
[377468499,1754418642899,-460.0,0.00028767,2]
[377468500,1754418642909,-460.0,0.00028767,2]
[377468501,1754418642920,-156.681698,0.00028779,20]
[377468502,1754418642931,-151.92,0.00028787,15]
[377468503,1754418642943,-151.93113071,0.00028887,15]
[377468504,1754418642953,-587.0,0.00028949,2]
[377468505,1754418642964,-360.0,0.00028987,2]
[377468506,1754418642974,-231.72586818,0.00029,10]
[377468507,1754418642984,-312.16666667,0.00029,10]
[377468508,1754418642995,-312.16666667,0.00029,10]